Cogmind - Beta 16 @@@ ROGUE MODE // 2025.11.20 @ 20:50:59 Player: Triffids Result: Self-destructed Performance ------------- Evolutions (3) 1500 Regions Visited (4) 800 Robots Destroyed (49) 245 Value Destroyed (1257) 1257 Prototype IDs (11) 220 Alien Tech Used (0) 0 Bonus (0) 0 TOTAL SCORE: 4022 Bonus ------- None Cogmind --------- Core Integrity 687/700 Matter 285/300 Energy 274/280 System Corruption 0% Temperature Cool (0) Movement Walking (181) Ox1 Location -7/Factory Parts ------- > --- POWER (1) -------- Cooled Ion Engine > --- PROPULSION (4) --- Aluminum Leg Carbon-fiber Leg VSS Leg Wheel > --- UTILITY (5) ------ Improved Heat Sink Small Storage Unit Sensor Array Improved Signal Interpreter Medium Reactive Plating > --- WEAPON (3) ------- Pulse Rifle Pulse Rifle Heavy Particle Cannon > --- INVENTORY (8) ---- Improved Deuterium Engine Sensor Array Heavy Particle Cannon Heavy Ion Cannon Gauss Rifle Gauss Rifle Katana Peak State ------------ > --- POWER ------------ Cooled Ion Engine > --- PROPULSION ------- Aluminum Leg Carbon-fiber Leg VSS Leg Wheel > --- UTILITY ---------- Improved Heat Sink Small Storage Unit Sensor Array Improved Signal Interpreter Medium Reactive Plating > --- WEAPON ----------- Pulse Rifle Pulse Rifle Heavy Particle Cannon > --- INVENTORY -------- Improved Deuterium Engine Sensor Array Light Armor Plating Heavy Particle Cannon Heavy Ion Cannon Gauss Rifle Gauss Rifle Katana [Rating: 34] Favorites ----------- Power Cooled Ion Engine Engine Cooled Ion Engine Propulsion Aluminum Leg Leg Aluminum Leg Wheel Wheel Utility Small Storage Unit Device Sensor Array Storage Small Storage Unit Processor Improved Signal Interpreter Protection Light Armor Plating Weapon Pulse Rifle Energy Gun Pulse Rifle Energy Cannon Particle Cannon Ballistic Gun Assault Rifle Launcher Grenade Launcher Build | -11 -10 -9 -8 -7 ------- Run | Yrd Mat Mat Mat Fac Slots Evolved 6 | . . 2 2 2 Power . | . . . . . Propulsion 2 | . . . 2 . Utility 3 | . . 2 . 1 Weapon 1 | . . . . 1 Parts Attached 43 | 8 . 21 11 3 Power 5 | 1 . 2 2 . Engine 5 | 1 . 2 2 . Core . | . . . . . Reactor . | . . . . . Propulsion 13 | 3 . 4 5 1 Treads . | . . . . . Leg 9 | . . 4 5 . Wheel 4 | 3 . . . 1 Hover . | . . . . . Flight . | . . . . . Utility 15 | 2 . 9 3 1 Device 7 | 1 . 5 1 . Storage 1 | 1 . . . . Processor 2 | . . 2 . . Hackware . | . . . . . Protection 5 | . . 2 2 1 Artifact . | . . . . . Weapon 10 | 2 . 6 1 1 Energy Gun 4 | 1 . 2 . 1 Energy Cannon 2 | . . 1 1 . Ballistic Gun 3 | 1 . 2 . . Ballistic Cannon . | . . . . . Launcher 1 | . . 1 . . Special Weapon . | . . . . . Impact Weapon . | . . . . . Slashing Weapon . | . . . . . Piercing Weapon . | . . . . . Special Melee Weapon . | . . . . . Unidentified Prototypes 1 | . . 1 . . Parts Lost 4 | . . 2 1 1 Power 1 | . . . 1 . Propulsion 1 | . . . . 1 Utility 2 | . . 2 . . Weapon . | . . . . . Highest Loss Streak 2 | . . 2 1 1 To Critical Strikes . | . . . . . Average Backups 7 | 5 8 7 7 7 Power . | . 1 1 . 1 Propulsion 1 | 2 3 1 . . Utility 1 | . 1 1 1 1 Weapon 3 | 1 2 4 4 4 Tool/Special . | . . . . . Unused Backups 17 | . 3 5 2 7 Power 4 | . . 2 . 2 Propulsion 3 | . 2 . 1 . Utility 2 | . . 1 . 1 Weapon 8 | . 1 2 1 4 Tool/Special . | . . . . . Average Slot Usage (%) 99 | . 100 99 99 99 Engine 10 | . 14 11 8 7 Leg 22 | . . 19 35 26 Wheel 3 | . 28 2 . 2 Device 18 | . 14 21 15 15 Storage 10 | . 14 11 9 7 Processor 9 | . . 10 9 7 Protection 1 | . . . 2 7 Energy Gun 10 | . 14 10 9 14 Energy Cannon 8 | . . 9 9 7 Ballistic Gun 2 | . 14 2 . . Peak Build Rating 34 | 8 8 17 27 34 Average Rating 17 | 5 7 15 23 30 On Entrance 11 | . 8 8 17 26 Avg Prop Armor Cover (%) 5 | 30 . . 3 3 Naked Turns . | . . . . . Heaviest Build 31 | 15 15 24 31 30 Greatest Support 47 | 26 20 20 47 47 Greatest Overweight (x) 1 | . . 1 1 . Average Overweight (x) . | . . . . . Largest Inventory Capacity 8 | 8 8 8 8 8 Average Capacity 7 | 7 8 8 8 8 Most Carried 8 | 8 8 8 8 8 Average Carried 7 | 5 7 7 7 7 Final Capacity 8 | 8 8 8 8 8 Final Carried 8 | 8 8 8 8 7 Class Distribution -------------------- 57% | Mutant 32% | Scavenger-Mutant 10% | Scavenger-Skirmisher Dominant Class ---------------- Mutant | -10/Materials Mutant | -9/Materials Scavenger-Mutant | -8/Materials Scavenger-Skirmisher | -7/Factory Resources | -11 -10 -9 -8 -7 ----------- Run | Yrd Mat Mat Mat Fac Matter Collected 856 | 319 15 369 118 35 Remotely . | . . . . . Salvage Created 1685 | 150 40 926 431 138 Parts 114 | 13 7 75 15 4 Haulers Intercepted 2 | . . 2 . . Recyclers Shooed 5 | . . 2 2 1 Parts Field Recycled . | . . . . . Retrieved Matter . | . . . . . Parts Self-Destructed . | . . . . . Prevented . | . . . . . Parts Restored . | . . . . . Kills | -11 -10 -9 -8 -7 ------- Run | Yrd Mat Mat Mat Fac Combat Hostiles Destroyed 32 | . . 23 8 1 Guns 16 | . . 13 3 . Cannons 10 | . . 4 5 1 AOE 5 | . . 5 . . Classes Destroyed 11 | 2 1 7 1 . Worker 1 | . . 1 . . Builder 4 | . 2 2 . . Tunneler 5 | 4 . . . 1 Hauler 2 | . . 2 . . Recycler 4 | 1 . 1 1 1 Watcher 1 | . . 1 . . Swarmer 7 | . . 7 . . Grunt 14 | . . 9 5 . Duelist 1 | . . 1 . . Sentry 9 | . . 6 2 1 Hunter 1 | . . . 1 . Best Kill Streak 8 | 3 1 8 6 3 Combat Bots Only 5 | . . 4 5 1 Max Kills in Single Turn 4 | 1 1 4 2 1 Gunslinging . | . . . . . Exploded 2 | . . 2 . . Melee . | . . . . . Uniques/NPCs Destroyed . | . . . . . Combat | -11 -10 -9 -8 -7 -------- Run | Yrd Mat Mat Mat Fac Hostile Shots Fired 185 | . . 89 56 40 Missed 49 | . . 21 14 14 Hits 136 | . . 68 42 26 Projectile 136 | . . 68 42 26 Critical Strikes 4 | . . 2 1 1 Damage Taken 1685 | . . 811 649 225 Core 291 | . . 168 110 13 Absorbed by Shields . | . . . . . Core Remaining (%) 84 | 100 100 58 80 . Volleys Fired 113 | 13 5 55 30 10 Largest 3 | 2 2 2 2 3 Hottest 201 | 70 70 131 138 201 Shots Fired 225 | 26 10 107 56 26 Gun 150 | 26 10 69 27 18 Cannon 72 | . . 35 29 8 Launcher 3 | . . 3 . . Special . | . . . . . Kinetic 41 | 13 5 23 . . Thermal 181 | 13 5 81 56 26 Explosive 3 | . . 3 . . Electromagnetic . | . . . . . Robot Hit Streak 22 | 5 7 22 17 9 Robot Miss Streak 3 | 3 1 3 3 2 Penetration Max . | . . . . . Secondary Targets . | . . . . . Shots Hit Robots 148 | 14 8 67 40 19 Core Hits 71 | 6 3 39 17 6 Critical Kills . | . . . . . Critical Parts Destroyed . | . . . . . Critical Strikes 5 | 1 . 4 . . Burn 5 | 1 . 4 . . Melee Attacks . | . . . . . Impact . | . . . . . Slashing . | . . . . . Piercing . | . . . . . Sneak Attacks . | . . . . . Combat Hostiles . | . . . . . Follow-up Attacks . | . . . . . Damage Inflicted 2978 | 188 97 1475 843 375 Guns 1670 | 188 97 769 391 225 Cannons 939 | . . 348 441 150 Explosions 358 | . . 358 . . Melee . | . . . . . Ramming 11 | . . . 11 . Kinetic 340 | 88 35 217 . . Thermal 2269 | 100 62 900 832 375 Explosive 358 | . . 358 . . Electromagnetic . | . . . . . Impact . | . . . . . Slashing . | . . . . . Piercing . | . . . . . Highest Corruption . | . . . . . Average Corruption . | . . . . . Corruption Purged . | . . . . . Corruption Blocked . | . . . . . Overload Shots . | . . . . . Overflow Damage 18 | . . 18 . . Projectiles 7 | . . 7 . . Explosions 11 | . . 11 . . Melee . | . . . . . Knockbacks . | . . . . . Impact . | . . . . . Kinetic . | . . . . . Secondary . | . . . . . Self-Inflicted Damage . | . . . . . Shots . | . . . . . Rammed . | . . . . . Targets Rammed 5 | . . . 5 . Kicked 5 | . . . 5 . Crushed . | . . . . . Highest Temperature 270 | 56 27 254 164 270 Average Temperature 59 | 20 11 59 56 128 Received Heat Transfer 693 | . . 282 306 105 Effects 1 | . . 1 . . Interference 1 | . . 1 . . Siege Activations . | . . . . . Martial Activations . | . . . . . Shielding Activations . | . . . . . Robots Disrupted . | . . . . . Combat Hostiles . | . . . . . Robots Corrupted . | . . . . . Combat Hostiles . | . . . . . Parts Fried . | . . . . . Impact Corruptions . | . . . . . Robots Melted 1 | . . 1 . . Combat Hostiles 1 | . . 1 . . Parts Melted 12 | . . 6 4 2 Heat Transferred 5032 | 370 185 2257 1517 703 Parts Sabotaged . | . . . . . Parts Stolen . | . . . . . Parts Stripped . | . . . . . Power Chain Reactions . | . . . . . Alert | -11 -10 -9 -8 -7 ------- Run | Yrd Mat Mat Mat Fac Maximum Alert Level 1 | . . 1 . . Low Security (%) 95 | 100 100 92 100 100 Level 1 4 | . . 7 . . Level 2 . | . . . . . Level 3 . | . . . . . Level 4 . | . . . . . Level 5 . | . . . . . High Security . | . . . . . Max Security . | . . . . . Peak Influence 235 | 10 11 235 190 72 Initial 95 | . . . 95 72 Average 84 | 2 . 96 123 41 Influence Increases 1124 | 25 21 718 305 55 Destroy 0b10 Robot/C 640 | . . 460 160 20 Destroy 0b10 Robot/NC 85 | 25 10 35 5 10 Destroy Leader 186 | . . 126 50 10 Successful Hack 80 | . 11 34 35 . Select Force Hacks 30 | . . . 30 . Disable Machine 45 | . . 45 . . Destroy Structure 28 | . . 18 10 . Lose Combat Pursuer 30 | . . . 15 15 Influence Decreases 1117 | 25 20 492 372 208 Entered New Map 221 | . . 1 132 88 Time Decay 856 | 25 20 471 230 110 Lost Part 40 | . . 20 10 10 Squads Dispatched 8 | . . 3 2 3 Investigation 3 | . . 1 2 . Extermination . | . . . . . Reinforcement 3 | . . 2 . 1 Assault . | . . . . . Garrison 2 | . . . . 2 Intercept . | . . . . . Searches Triggered . | . . . . . Construction Impeded . | . . . . . Haulers Reinforced . | . . . . . Active Scanning Responses . | . . . . . Cargo Convoy Interrupts . | . . . . . Stealth | -11 -10 -9 -8 -7 --------- Run | Yrd Mat Mat Mat Fac Distress Signals 4 | . . 3 1 . Communications Jammed . | . . . . . Distress Signals . | . . . . . Times Spotted 48 | . 3 29 14 2 Peak Tracking Total 6 | . 2 4 6 1 Tactical Retreats 2 | . . . 1 1 Traps | -11 -10 -9 -8 -7 ------- Run | Yrd Mat Mat Mat Fac Traps Triggered 1 | . . 1 . . Indirectly . | . . . . . Trap Hack Attempts . | . . . . . Triggered . | . . . . . Disarmed . | . . . . . Reprogrammed . | . . . . . Reused . | . . . . . Traps Extracted . | . . . . . Installed . | . . . . . Triggered . | . . . . . Machines | -11 -10 -9 -8 -7 ---------- Run | Yrd Mat Mat Mat Fac Machines Disabled 3 | . . 3 . . Max in Single Turn 1 | . . 1 . . Garrison Access 1 | . . . 1 . Machines Repaired . | . . . . . Machines Dismantled . | . . . . . Machines Sabotaged . | . . . . . Overloaded Fab Kills . | . . . . . Hacking | -11 -10 -9 -8 -7 --------- Run | Yrd Mat Mat Mat Fac Machines Accessed 17 | . 3 5 9 . Terminals 15 | . 3 5 7 . Fabricators . | . . . . . Repair Stations . | . . . . . Recycling Units . | . . . . . Scanalyzers 1 | . . . 1 . Garrison Access 1 | . . . 1 . Total Hacks 58 | . 10 15 33 . Successful 30 | . 4 8 18 . Failed 28 | . 6 7 15 . Catastrophic 5 | . 1 3 1 . Database Lockouts . | . . . . . Manual 27 | . 5 8 14 . Terminals 55 | . 10 15 30 . Fabricators . | . . . . . Repair Stations . | . . . . . Recycling Units . | . . . . . Scanalyzers 2 | . . . 2 . Garrison Access 1 | . . . 1 . Terminal Hacks 22 | . 3 7 12 . Robot Analysis 2 | . . 1 1 . Prototype ID Bank 6 | . . 3 3 . Level Access Points 1 | . . . 1 . Branch Access Points 2 | . . 1 1 . Emergency Access Points 2 | . . . 2 . Terminal Index 3 | . 1 1 1 . Locate Traps 3 | . 1 1 1 . Hauler Manifests 1 | . . . 1 . Zone Layout 2 | . 1 . 1 . Fabricator Hacks . | . . . . . Repair Station Hacks . | . . . . . Recycling Unit Hacks . | . . . . . Scanalyzer 1 | . . . 1 . Retrieve Study 1 | . . . 1 . Garrison Access Hacks 1 | . . . 1 . Seal Access 1 | . . . 1 . Unauthorized Hacks 6 | . 1 1 4 . Terminals 5 | . 1 1 3 . Botnet 5 | . 1 1 3 . Fabricators . | . . . . . Repair Stations . | . . . . . Recycling Units . | . . . . . Scanalyzers 1 | . . . 1 . Extract 1 | . . . 1 . Garrison Access . | . . . . . Data Cores Recovered . | . . . . . Used . | . . . . . Hacking Detections 16 | . 3 5 8 . Full Trace Events 2 | . 1 . 1 . Feedback Events . | . . . . . Feedback Blocked . | . . . . . Robot Schematics Acquired . | . . . . . Robots Built . | . . . . . Authchips . | . . . . . Time . | . . . . . Total Robot Build Rating . | . . . . . Part Schematics Acquired 3 | . . . 3 . Parts Built . | . . . . . Authchips . | . . . . . Time . | . . . . . Total Part Build Rating . | . . . . . Part Studies Acquired 1 | . . . 1 . Parts Repaired . | . . . . . Time . | . . . . . Parts Recycled . | . . . . . Recycled Matter . | . . . . . Retrieved Matter . | . . . . . Retrieved Components . | . . . . . Parts Scanalyzed . | . . . . . Part Schematics Acquired . | . . . . . Parts Damaged . | . . . . . Bothacking | -11 -10 -9 -8 -7 ------------ Run | Yrd Mat Mat Mat Fac Used RIF Installer . | . . . . . Robots Hacked . | . . . . . Non-combat . | . . . . . Combat . | . . . . . Robot Hacks Applied . | . . . . . Relay Couplers Released . | . . . . . Fabnet Peak Effective % . | . . . . . Robots Rewired . | . . . . . Allies Hacked . | . . . . . Hacks Repelled . | . . . . . Allies | -11 -10 -9 -8 -7 -------- Run | Yrd Mat Mat Mat Fac Total Allies . | . . . . . Largest Group . | . . . . . Highest-Rated Group . | . . . . . Highest-Rated Ally . | . . . . . Total Orders . | . . . . . Ally Attacks . | . . . . . Total Damage . | . . . . . Kills . | . . . . . Allies Corrupted . | . . . . . Allies Melted . | . . . . . Intel | -11 -10 -9 -8 -7 ------- Run | Yrd Mat Mat Mat Fac Active Infowar (turns) 1995 | 12 167 1242 340 234 Sensors 1574 | . . 1000 340 234 Terrain 199 | . . 199 . . Seismic 421 | 12 167 242 . . Robot Analysis Total 2 | . . 1 1 . Derelict Logs Recovered . | . . . . . Drone Launches . | . . . . . Drone Recoveries . | . . . . . Exploration | -11 -10 -9 -8 -7 ------------- Run | Yrd Mat Mat Mat Fac Turns Passed 2314 | 122 167 1304 487 234 Spaces Moved 1339 | 77 177 580 320 185 Core 16 | 16 . . . . Treads . | . . . . . Legs 1005 | . . 500 320 185 Wheels 318 | 61 177 80 . . Hover . | . . . . . Flight . | . . . . . Fastest Speed 50 | 50 80 80 105 105 Average Speed 130 | 75 80 171 111 105 Slowest Speed 190 | 90 80 190 175 105 Overloaded Moves . | . . . . . Propulsion Burnouts . | . . . . . Robots Hopped . | . . . . . Potential Cave-ins . | . . . . . Cave-ins Triggered . | . . . . . Exploration Rate (%) 24 | 4 32 45 32 8 Regions Visited 4 Branch Regions . Pre-discovered Areas . | . . . . . Known Exits Taken 2 | . . 1 1 . Unknown Exits Taken 2 | 1 1 . . . Scrap Searched . | . . . . . Spaces Dug 3 | . . . 3 . Terrain Destroyed 27 | . . 17 10 . Melee . | . . . . . Projectile 10 | . . . 10 . AOE 17 | . . 17 . . Terrain Rammed . | . . . . . Walls Destroyed . | . . . . . Machines Disabled . | . . . . . Actions | -11 -10 -9 -8 -7 --------- Run | Yrd Mat Mat Mat Fac Total 1695 | 114 193 788 394 206 Wait 111 | 1 6 93 11 . Move 1335 | 76 176 579 319 185 Hop . | . . . . . Pick Up 40 | 14 3 14 5 4 Fast Attach 7 | 3 . 2 1 1 Attach 11 | 4 . 3 2 2 Detach 1 | . . 1 . . Swap 37 | 1 . 23 12 1 Drop 35 | 2 3 18 9 3 Fire 113 | 13 5 55 30 10 Melee . | . . . . . Ram . | . . . . . Kick 5 | . . . 5 . Crush . | . . . . . Escape Stasis . | . . . . . Rewire . | . . . . . Trap . | . . . . . Miscellaneous . | . . . . . Route ------- -11/Scrapyard -10/Materials -9/Materials (discovered 5 exits: *Mat / *Min x2 / *Sto x2) -8/Materials (discovered 3 exits: *Fac x3) -7/Factory History --------- Turn | Location | Event 8 | -11/Scrapyard | Discovered new exit (range 15) 123 | -11/Scrapyard | Entered Materials 278 | -10/Materials | Discovered new exit (range 16) 290 | -10/Materials | Entered another Materials area 290 | -9/Materials | Evolved 2 slots: Utility x2 314 | -9/Materials | Discovered new exit (range 16) 825 | -9/Materials | Build established: Mutant 1342 | -9/Materials | Identified exit to Mines 1342 | -9/Materials | Identified exit to Storage 1552 | -9/Materials | Discovered new exit (range 13) 1571 | -9/Materials | Identified exit to Materials 1594 | -9/Materials | Entered another Materials area 1594 | -8/Materials | Evolved 2 slots: Propulsion x2 1875 | -8/Materials | Identified exit to Factory 1881 | -8/Materials | Build established: Scavenger-Mutant 2081 | -8/Materials | Entered Factory 2081 | -7/Factory | Evolved 2 slots: Utility x1, Weapon x1 2174 | -7/Factory | Garrison activated, responded to threat 2315 | -7/Factory | Self-destructed Last Messages --------------- 02204_ Destroyed Mining Laser. 02205_ K-01 Serf collects debris. 02207_ T-07 Excavator destroyed. 02209_ K-01 Serf collects debris. 02212_ R-06 Scavenger collects Lgt. Nuclear Core. 02214_ K-01 Serf collects debris. 02219_ Acquired Wheel. 02220_ Acquired 5 matter. 02221_ K-01 Serf collects debris. 02221_ R-06 Scavenger collects Lgt. Ion Engine. 02222_ ALERT: Suspicious intruders detected, dispatching Specialist reinforcements to area. [Achievement: Heavy Suspicion] 02223_ K-01 Serf collects debris. 02225_ R-06 Scavenger collects Seismic Detector. 02227_ K-01 Serf collects debris. 02305_ Dropped Grenade Launcher. 02306_ Acquired Hvy. Ion Cannon. 02309_ R-06 Scavenger collects Grenade Launcher. 02315_ Dropped Lgt. Armor Plating. Map ----- +----------------------------------------------------+ | ?????????????????????????????????????????????????? | | ?????????????????????????????????????????????????? | | ?????????????????????????????????????????????????? | | ?????????????????????????????????????????????????? | | ?????????????????????????????????????????????????? | | ?????????????????????????????????????????????????? | | ?????????????????????????????????????????????????? | | ?????????????????????????????????????????????????? | | ?????????????????????????????????????????????????? | | #????????????????????????????????????????????????? | | # ??????????????????????????????????????????????? | | # ??????????????????????????????????????????????? | | # ??????????????????????????????????????????????? | | # ??????????????????????????????????????????????? | | # """???????????????????????????????????????????? | | # """""?????????????????????????????????????????? | | # """"??????????????????????????????????????????? | | #? """???????????????###########?????????????????? | | #? ????????????????# #?????????????????? | | ###+##################!!] #?????????????????? | | """"" #!!] #?????????????????? | | ^""T"" #!!] #?????????????????? | | ^ # #?????????????????? | | """ # #?????????????????? | | """ # ! #?????????????????? | | ###/#######r """ #= @ #?????????????????? | | ? ????# ###+#######?????????????????? | | ??# r r t ??????????? | | ! ?# #### ??????????? | | # #??# ??????????? | | # #??# ???????????? | | # #??# u u kk ???????????? | | # #??################/#####????????????? | | # #??????????????????? ???????????????? | | # ????????????????????? #??????????????? | | # ??????????????????????#??????????????? | | ? ?????????????????????????????????????? | | ???? ???????????????????k?????????????????? | | ?#####?????+?????????????????????????????????????? | | ?????????????????????????????????????????????????? | | ?????????????????????????????????????????????????? | | ?????????????????????????????????????????????????? | | ?????????????????????????????????????????????????? | | ?????????????????????????????????????????????????? | | ?????????????????????????????????????????????????? | | ?????????????????????????????????????????????????? | | ?????????????????????????????????????????????????? | | ?????????????????????????????????????????????????? | | ?????????????????????????????????????????????????? | | ?????????????????????????????????????????????????? | +----------------------------------------------------+ Best States ------------- Heat Dissipation 48 Energy Generation 14 Energy Capacity 280 Matter Stores 300 Matter Capacity 300 Sight Range 16 Robot Scan Range 14 Terrain Scan Range 16 Terrain Scan Density 85 Armor Coverage 225 Evasion (%) 55 Item Schematics ----------------- Particle Gun | -8/Materials | Extracted Hvy. Armor Plating | -8/Materials | Extracted Imp. Weapon Shielding | -8/Materials | Extracted Robot Schematics ------------------ None Fabricated ------------ Nothing Repaired ---------- Nothing Studied --------- Aluminum Leg | -8/Materials | Hacked Alien Tech Used ----------------- None Achievements -------------- Heavy Suspicion Challenges ------------ None Game ------ Seed StormChargeDiverter Manual? 0 Play Time 00:42:24 Cumulative 242.0 hours Start 2025.11.16 @ 11:41:18 End 2025.11.20 @ 20:50:59 Sessions 5 Manual Loads 0 Difficulty Rogue Special Mode None Game No. 450 Rogue 450 Adventurer 0 Explorer 0 Win Type - Total 1 Types 1/0/0/0/0/0/0/0/0/0 Lore% 30 Gallery% 47 Achievement% 25 Wizard Run 0 Options --------- Layout 1 ASCII 0 Keyboard 1 Movement Vi Keybinds 0 Fullscreen 0 Font 20/Smallcaps Map View 59x39 Zoom Use 0% Tactical HUD 1 Map Filters NONE Filters NONE Steam 1 RUN: 874635f3-8308-4f0f-bae3-205238b80b1b